[Event "*** Titled Tuesday 3|2 Blitz"]
[Site "Chess.com"]
[Date "2016.05.03"]
[Round "5"]
[White "igorkovalenko"]
[Black "Kacparov"]
[Result "0-1"]
[WhiteElo "2578"]
[BlackElo "2610"]
[TimeControl "180+2"]
[EndTime "12:02:00 PDT"]
[Termination "Kacparov won by resignation"]

1. d4 {[%clk 0:03:01.1]} 1... g6 {[%clk 0:03:01.2]} 2. Nf3 {[%clk 0:03:02.7]}
2... Bg7 {[%clk 0:03:02.5]} 3. e4 {[%clk 0:03:04.6]} 3... d6 {[%clk 0:03:03.8]}
4. h3 {[%clk 0:03:05.3]} 4... Nd7 {[%clk 0:03:03.6]} 5. Nc3 {[%clk 0:03:04.6]}
5... e5 {[%clk 0:03:03.3]} 6. Be3 {[%clk 0:03:05.2]} 6... c6 {[%clk 0:03:02.7]}
7. Qd2 {[%clk 0:03:05.7]} 7... Ngf6 {[%clk 0:03:01.9]} 8. a4 {[%clk 0:03:05.6]}
8... O-O {[%clk 0:03:02.8]} 9. Bd3 {[%clk 0:03:06.5]} 9... exd4 {[%clk
0:03:02.7]} 10. Bxd4 {[%clk 0:03:07.2]} 10... Nc5 {[%clk 0:03:00.2]} 11. O-O
{[%clk 0:03:04.2]} 11... Nxd3 {[%clk 0:02:54.9]} 12. cxd3 {[%clk 0:03:05.2]}
12... d5 {[%clk 0:02:47.8]} 13. Rad1 {[%clk 0:02:56.7]} 13... dxe4 {[%clk
0:02:45.7]} 14. dxe4 {[%clk 0:02:57.7]} 14... Be6 {[%clk 0:02:46.4]} 15. Qc2
{[%clk 0:02:57.7]} 15... Qa5 {[%clk 0:02:43.5]} 16. Rfe1 {[%clk 0:02:51.5]}
16... Rfd8 {[%clk 0:02:39.5]} 17. Be3 {[%clk 0:02:51.5]} 17... Qb4 {[%clk
0:02:37.5]} 18. Nd4 {[%clk 0:02:33.4]} 18... Bc4 {[%clk 0:02:32.5]} 19. b3
{[%clk 0:02:28.5]} 19... Ba6 {[%clk 0:02:31.8]} 20. Na2 {[%clk 0:02:09.8]} 20...
Qe7 {[%clk 0:02:24.9]} 21. Nc3 {[%clk 0:02:10.8]} 21... Re8 {[%clk 0:02:22.5]}
22. f3 {[%clk 0:01:44.9]} 22... Rad8 {[%clk 0:02:23.3]} 23. Bf2 {[%clk
0:01:46.2]} 23... Nh5 {[%clk 0:02:23.4]} 24. Nde2 {[%clk 0:01:41.5]} 24... b6
{[%clk 0:02:08.3]} 25. Rxd8 {[%clk 0:01:42.2]} 25... Rxd8 {[%clk 0:02:07.6]} 26.
Rd1 {[%clk 0:01:43.8]} 26... Be5 {[%clk 0:01:54.5]} 27. g3 {[%clk 0:01:24.2]}
27... Rxd1+ {[%clk 0:01:38.5]} 28. Qxd1 {[%clk 0:01:22]} 28... f5 {[%clk
0:01:34.4]} 29. exf5 {[%clk 0:01:18.3]} 29... gxf5 {[%clk 0:01:36.3]} 30. Kg2
{[%clk 0:01:19]} 30... Ng7 {[%clk 0:01:33.9]} 31. Bd4 {[%clk 0:01:05]} 31... Bc7
{[%clk 0:01:32]} 32. Qd2 {[%clk 0:01:03.5]} 32... Ne6 {[%clk 0:01:16]} 33. Be3
{[%clk 0:01:01.3]} 33... Qd6 {[%clk 0:01:02.1]} 34. Qxd6 {[%clk 0:01:01]} 34...
Bxd6 {[%clk 0:01:04]} 35. Nd4 {[%clk 0:00:52.1]} 35... Nxd4 {[%clk 0:01:04.7]}
36. Bxd4 {[%clk 0:00:54]} 36... Bd3 {[%clk 0:01:05]} 37. a5 {[%clk 0:00:29.6]}
37... c5 {[%clk 0:00:59.6]} 38. axb6 {[%clk 0:00:28.5]} 38... axb6 {[%clk
0:01:00.1]} 39. Be3 {[%clk 0:00:26]} 39... Kf7 {[%clk 0:00:56.9]} 40. Bf4 {[%clk
0:00:18.1]} 40... Bxf4 {[%clk 0:00:48.9]} 41. gxf4 {[%clk 0:00:20]} 41... Bc2
{[%clk 0:00:50.4]} 42. Na4 {[%clk 0:00:21]} 42... Bxb3 {[%clk 0:00:51.5]} 43.
Nxb6 {[%clk 0:00:22.4]} 43... Ke6 {[%clk 0:00:51.1]} 44. Kf2 {[%clk 0:00:22.8]}
44... Kd6 {[%clk 0:00:51.8]} 45. Ke3 {[%clk 0:00:23.5]} 45... Kc7 {[%clk
0:00:52]} 0-1

[Event "*** Titled Tuesday 3|2 Blitz"]
[Site "Chess.com"]
[Date "2016.05.03"]
[Round "5"]
[White "charlescandycampbell"]
[Black "Saitama_Hero"]
[Result "1-0"]
[WhiteElo "2056"]
[BlackElo "2140"]
[TimeControl "180+2"]
[EndTime "12:02:03 PDT"]
[Termination "charlescandycampbell won by resignation"]

1. d4 {[%clk 0:02:58.5]} 1... Nf6 {[%clk 0:02:58.3]} 2. c4 {[%clk 0:02:59.1]}
2... g6 {[%clk 0:02:59.7]} 3. Nf3 {[%clk 0:02:58]} 3... d5 {[%clk 0:03:01]} 4.
Nc3 {[%clk 0:02:54.6]} 4... Bg7 {[%clk 0:03:00.2]} 5. e3 {[%clk 0:02:53.3]} 5...
O-O {[%clk 0:03:00.6]} 6. Be2 {[%clk 0:02:54.1]} 6... c5 {[%clk 0:03:00.4]} 7.
O-O {[%clk 0:02:54]} 7... cxd4 {[%clk 0:03:01.9]} 8. Nxd4 {[%clk 0:02:53]} 8...
Nc6 {[%clk 0:03:03.1]} 9. Nxd5 {[%clk 0:02:40.1]} 9... Nxd5 {[%clk 0:03:02.1]}
10. Nxc6 {[%clk 0:02:39.5]} 10... bxc6 {[%clk 0:03:01.5]} 11. cxd5 {[%clk
0:02:40.7]} 11... cxd5 {[%clk 0:02:47.3]} 12. Bf3 {[%clk 0:02:37.3]} 12... e6
{[%clk 0:02:46.2]} 13. e4 {[%clk 0:02:33.5]} 13... Ba6 {[%clk 0:02:46.6]} 14.
Re1 {[%clk 0:02:30.7]} 14... d4 {[%clk 0:02:47.9]} 15. Bd2 {[%clk 0:02:25.5]}
15... Rb8 {[%clk 0:02:48.8]} 16. b3 {[%clk 0:02:16.8]} 16... Rc8 {[%clk
0:02:42]} 17. Bb4 {[%clk 0:02:10.5]} 17... Re8 {[%clk 0:02:41.8]} 18. Rc1 {[%clk
0:02:11.4]} 18... Qb6 {[%clk 0:02:40.1]} 19. Qd2 {[%clk 0:02:10.4]} 19... e5
{[%clk 0:02:37.1]} 20. Ba5 {[%clk 0:02:08.2]} 20... Qe6 {[%clk 0:02:10.2]} 21.
h3 {[%clk 0:02:01.9]} 21... d3 {[%clk 0:02:09.3]} 22. Bg4 {[%clk 0:02:00.6]}
22... f5 {[%clk 0:02:09.3]} 23. exf5 {[%clk 0:02:01.6]} 23... gxf5 {[%clk
0:02:11.1]} 24. Bh5 {[%clk 0:01:55.8]} 24... Rf8 {[%clk 0:02:08.2]} 25. Qg5
{[%clk 0:01:34]} 25... Rxc1 {[%clk 0:02:03.1]} 26. Rxc1 {[%clk 0:01:33.4]} 26...
Qh6 {[%clk 0:01:56.3]} 27. Bd2 {[%clk 0:01:28.4]} 27... Qxg5 {[%clk 0:01:54.9]}
28. Bxg5 {[%clk 0:01:29.3]} 28... f4 {[%clk 0:01:56.5]} 29. Rc6 {[%clk
0:01:23.2]} 29... Bb7 {[%clk 0:01:49]} 30. Rc7 {[%clk 0:01:23.4]} 30... Be4
{[%clk 0:01:42.8]} 31. Rxa7 {[%clk 0:01:20.4]} 31... Bg6 {[%clk 0:01:34]} 32.
Bxg6 {[%clk 0:01:15.8]} 32... hxg6 {[%clk 0:01:35.9]} 33. f3 {[%clk 0:01:13]}
33... e4 {[%clk 0:01:35.4]} 34. Rd7 {[%clk 0:01:08.7]} 34... Rf5 {[%clk
0:01:19.1]} 35. h4 {[%clk 0:01:06.3]} 35... Rc5 {[%clk 0:00:57.3]} 36. fxe4
{[%clk 0:01:03.7]} 36... Rc1+ {[%clk 0:00:58.7]} 37. Kh2 {[%clk 0:01:04.6]}
37... Rd1 {[%clk 0:00:56.1]} 38. Bxf4 {[%clk 0:01:04.4]} 38... Bc3 {[%clk
0:00:41.8]} 39. g4 {[%clk 0:01:00.7]} 39... d2 {[%clk 0:00:37.7]} 40. h5 {[%clk
0:01:00]} 40... Rf1 {[%clk 0:00:35.8]} 41. Bxd2 {[%clk 0:00:59.8]} 41... Rf2+
{[%clk 0:00:28.7]} 42. Kg3 {[%clk 0:01:00.9]} 42... Rxd2 {[%clk 0:00:28.9]} 43.
Rxd2 {[%clk 0:01:01.1]} 43... Bxd2 {[%clk 0:00:30.8]} 44. hxg6 {[%clk
0:00:59.4]} 44... Kg7 {[%clk 0:00:31]} 45. Kf3 {[%clk 0:00:59.4]} 1-0

[Event "*** Titled Tuesday 3|2 Blitz"]
[Site "Chess.com"]
[Date "2016.05.03"]
[Round "5"]
[White "Iwannabetheguy"]
[Black "Rating-Schmating"]
[Result "1-0"]
[WhiteElo "2005"]
[BlackElo "2231"]
[TimeControl "180+2"]
[EndTime "12:02:03 PDT"]
[Termination "Iwannabetheguy won by checkmate"]

1. e4 {[%clk 0:03:01.9]} 1... e6 {[%clk 0:02:59.5]} 2. d4 {[%clk 0:03:01.9]}
2... d5 {[%clk 0:02:58.1]} 3. Nc3 {[%clk 0:03:03.2]} 3... Bb4 {[%clk 0:02:57.3]}
4. e5 {[%clk 0:03:02.7]} 4... Bf8 {[%clk 0:02:57.7]} 5. Nf3 {[%clk 0:03:01.6]}
5... c5 {[%clk 0:02:58]} 6. Bd3 {[%clk 0:02:55.5]} 6... Nc6 {[%clk 0:02:56.8]}
7. Be3 {[%clk 0:02:48.7]} 7... Qb6 {[%clk 0:02:50.6]} 8. O-O {[%clk 0:02:39.6]}
8... cxd4 {[%clk 0:02:47.7]} 9. Nxd4 {[%clk 0:02:39.4]} 9... Nxd4 {[%clk
0:02:12.3]} 10. Bxd4 {[%clk 0:02:38.2]} 10... Qc7 {[%clk 0:01:59.1]} 11. Nb5
{[%clk 0:02:36.7]} 11... Qa5 {[%clk 0:01:55.1]} 12. b4 {[%clk 0:02:17.2]} 12...
Bxb4 {[%clk 0:01:45.6]} 13. Rb1 {[%clk 0:02:18.6]} 13... a6 {[%clk 0:01:38.7]}
14. Rxb4 {[%clk 0:02:16.8]} 14... Qxb4 {[%clk 0:01:34.7]} 15. Nc7+ {[%clk
0:02:16.5]} 15... Kd8 {[%clk 0:01:30.2]} 16. c3 {[%clk 0:01:53.3]} 16... Qa3
{[%clk 0:00:51.1]} 17. Nxa8 {[%clk 0:01:52.1]} 17... Ne7 {[%clk 0:00:49.6]} 18.
Bb6+ {[%clk 0:01:49.3]} 18... Ke8 {[%clk 0:00:47.1]} 19. Qb3 {[%clk 0:01:39.6]}
19... Qxb3 {[%clk 0:00:43.6]} 20. axb3 {[%clk 0:01:41.5]} 20... Kd7 {[%clk
0:00:42.6]} 21. Bc5 {[%clk 0:01:40.8]} 21... Nc6 {[%clk 0:00:39.9]} 22. Nb6+
{[%clk 0:01:40.8]} 22... Kc7 {[%clk 0:00:40.5]} 23. Nxc8 {[%clk 0:01:41.7]}
23... Rxc8 {[%clk 0:00:40.2]} 24. Bd6+ {[%clk 0:01:43.1]} 24... Kd7 {[%clk
0:00:40.1]} 25. b4 {[%clk 0:01:39.8]} 25... b5 {[%clk 0:00:38.2]} 26. f4 {[%clk
0:01:39.3]} 26... f6 {[%clk 0:00:35.5]} 27. Bxh7 {[%clk 0:01:37.9]} 27... d4
{[%clk 0:00:23.5]} 28. cxd4 {[%clk 0:01:34.4]} 28... Nxd4 {[%clk 0:00:24.3]} 29.
Rd1 {[%clk 0:01:33.8]} 29... Ne2+ {[%clk 0:00:24.4]} 30. Kf2 {[%clk 0:01:32.2]}
30... Nxf4 {[%clk 0:00:26.3]} 31. exf6 {[%clk 0:01:30]} 31... gxf6 {[%clk
0:00:27.3]} 32. Bxf4+ {[%clk 0:01:30.6]} 32... Ke7 {[%clk 0:00:28.9]} 33. Be4
{[%clk 0:01:27.9]} 33... Kf7 {[%clk 0:00:30.8]} 34. g4 {[%clk 0:01:24.4]} 34...
Rc4 {[%clk 0:00:32.7]} 35. Rd7+ {[%clk 0:01:15.8]} 35... Ke8 {[%clk 0:00:32.4]}
36. Ra7 {[%clk 0:01:04.2]} 36... Rxe4 {[%clk 0:00:33.4]} 37. Kf3 {[%clk
0:01:05.1]} 37... Rxb4 {[%clk 0:00:34.4]} 38. Rxa6 {[%clk 0:01:06.7]} 38... Kf7
{[%clk 0:00:34.3]} 39. Rb6 {[%clk 0:01:06.1]} 39... Rb3+ {[%clk 0:00:35.2]} 40.
Be3 {[%clk 0:01:05.6]} 40... Rb1 {[%clk 0:00:33.8]} 41. h4 {[%clk 0:01:05.9]}
41... b4 {[%clk 0:00:35]} 42. h5 {[%clk 0:01:06.4]} 42... f5 {[%clk 0:00:36]}
43. g5 {[%clk 0:01:05.8]} 43... e5 {[%clk 0:00:35.8]} 44. Rb7+ {[%clk 0:01:06]}
44... Kf8 {[%clk 0:00:36.5]} 45. h6 {[%clk 0:01:06.1]} 45... Rf1+ {[%clk
0:00:36.1]} 46. Ke2 {[%clk 0:01:06.4]} 46... Rh1 {[%clk 0:00:36.5]} 47. h7
{[%clk 0:01:07.5]} 47... f4 {[%clk 0:00:37.1]} 48. Bc5+ {[%clk 0:01:08]} 48...
Ke8 {[%clk 0:00:37.1]} 49. h8=Q+ {[%clk 0:01:09.2]} 49... Rxh8 {[%clk
0:00:37.5]} 50. Rb8+ {[%clk 0:01:10.6]} 50... Kd7 {[%clk 0:00:39.1]} 51. Rxh8
{[%clk 0:01:12.1]} 51... b3 {[%clk 0:00:40.6]} 52. Rb8 {[%clk 0:01:13]} 52...
Ke6 {[%clk 0:00:42.5]} 53. Rxb3 {[%clk 0:01:13.7]} 53... Kd5 {[%clk 0:00:44.4]}
54. Ba7 {[%clk 0:01:13.5]} 54... Ke4 {[%clk 0:00:46.3]} 55. Bb8 {[%clk
0:01:13.9]} 55... f3+ {[%clk 0:00:47.2]} 56. Rxf3 {[%clk 0:01:14.2]} 56... Kd5
{[%clk 0:00:49]} 57. Re3 {[%clk 0:01:15]} 57... Ke6 {[%clk 0:00:50.9]} 58. Rxe5+
{[%clk 0:01:15.8]} 58... Kf7 {[%clk 0:00:52.8]} 59. Rf5+ {[%clk 0:01:16.4]}
59... Kg6 {[%clk 0:00:54.7]} 60. Rc5 {[%clk 0:01:16.7]} 60... Kg7 {[%clk
0:00:56.1]} 61. Rc6 {[%clk 0:01:16.4]} 61... Kf7 {[%clk 0:00:57.4]} 62. Kf3
{[%clk 0:01:17.4]} 62... Kg8 {[%clk 0:00:59.3]} 63. Rc7 {[%clk 0:01:17.9]} 63...
Kf8 {[%clk 0:01:00.5]} 64. Kf4 {[%clk 0:01:19]} 64... Ke8 {[%clk 0:01:02.4]} 65.
Kf5 {[%clk 0:01:20.4]} 65... Kd8 {[%clk 0:01:03.8]} 66. Ke6 {[%clk 0:01:21.4]}
66... Ke8 {[%clk 0:01:05.1]} 67. Rc8# {[%clk 0:01:22.7]} 1-0

[Event "*** Titled Tuesday 3|2 Blitz"]
[Site "Chess.com"]
[Date "2016.05.03"]
[Round "5"]
[White "AndrewMcStone"]
[Black "evgenyermolaev"]
[Result "0-1"]
[WhiteElo "1982"]
[BlackElo "2290"]
[TimeControl "180+2"]
[EndTime "12:02:11 PDT"]
[Termination "evgenyermolaev won by resignation"]

1. d4 {[%clk 0:03:01.9]} 1... Nf6 {[%clk 0:01:56.9]} 2. Bg5 {[%clk 0:02:57.8]}
2... Ne4 {[%clk 0:01:57.7]} 3. Bf4 {[%clk 0:02:58.4]} 3... c5 {[%clk 0:01:59]}
4. d5 {[%clk 0:02:59.1]} 4... Qb6 {[%clk 0:01:58.1]} 5. Nd2 {[%clk 0:02:59.6]}
5... Nxd2 {[%clk 0:01:56.3]} 6. Bxd2 {[%clk 0:03:00.4]} 6... Qxb2 {[%clk
0:01:57.4]} 7. Rb1 {[%clk 0:03:00.3]} 7... Qxa2 {[%clk 0:01:58.5]} 8. e4 {[%clk
0:02:47.6]} 8... e6 {[%clk 0:01:59.4]} 9. Bc3 {[%clk 0:02:40.7]} 9... Qa4 {[%clk
0:01:50.9]} 10. Qf3 {[%clk 0:02:04.2]} 10... exd5 {[%clk 0:01:40.3]} 11. exd5
{[%clk 0:02:03.2]} 11... Qxc2 {[%clk 0:01:41]} 12. Qe3+ {[%clk 0:01:53.6]} 12...
Kd8 {[%clk 0:01:42.1]} 13. Ba5+ {[%clk 0:01:34]} 13... b6 {[%clk 0:01:30.7]} 14.
Rxb6 {[%clk 0:01:34.5]} 14... Qa4 {[%clk 0:01:03]} 15. Rb5+ {[%clk 0:01:23.3]}
15... Qxa5+ {[%clk 0:01:04.1]} 16. Rxa5 {[%clk 0:01:24.7]} 16... Bd6 {[%clk
0:01:06]} 17. Qg5+ {[%clk 0:01:15.4]} 17... Kc7 {[%clk 0:01:02.6]} 18. Bc4
{[%clk 0:01:05.9]} 18... f6 {[%clk 0:00:57.5]} 19. Qxg7 {[%clk 0:01:01.2]} 19...
Re8+ {[%clk 0:00:58.6]} 20. Ne2 {[%clk 0:01:02.5]} 20... Re4 {[%clk 0:00:59.8]}
21. Bd3 {[%clk 0:00:50.8]} 21... Re7 {[%clk 0:00:56.7]} 22. Qxf6 {[%clk
0:00:40.6]} 22... c4 {[%clk 0:00:57.8]} 23. Bxc4 {[%clk 0:00:23.4]} 23... Bb4+
{[%clk 0:00:58.7]} 24. Kd1 {[%clk 0:00:24.8]} 24... Rxe2 {[%clk 0:00:55.2]} 25.
Bxe2 {[%clk 0:00:12.1]} 25... Bxa5 {[%clk 0:00:56.1]} 26. d6+ {[%clk 0:00:13]}
26... Kb7 {[%clk 0:00:55.5]} 27. Bf3+ {[%clk 0:00:12.6]} 27... Nc6 {[%clk
0:00:56.9]} 28. Qb2+ {[%clk 0:00:13.6]} 28... Bb6 {[%clk 0:00:57.9]} 29. Kd2
{[%clk 0:00:12.8]} 29... Kb8 {[%clk 0:00:58.3]} 30. Bxc6 {[%clk 0:00:12.4]}
30... dxc6 {[%clk 0:00:59.2]} 31. Re1 {[%clk 0:00:12.8]} 31... Kb7 {[%clk
0:00:53.6]} 32. Re7+ {[%clk 0:00:13.5]} 32... Ka6 {[%clk 0:00:55.1]} 33. Qa2+
{[%clk 0:00:13.9]} 33... Kb5 {[%clk 0:00:56.4]} 34. Qb3+ {[%clk 0:00:14.4]}
34... Kc5 {[%clk 0:00:57.6]} 35. d7 {[%clk 0:00:14.5]} 35... Ba6 {[%clk
0:00:57]} 36. Re8 {[%clk 0:00:13.6]} 36... Rd8 {[%clk 0:00:57.6]} 37. Rxd8
{[%clk 0:00:14.2]} 37... Bxd8 {[%clk 0:00:58.3]} 38. Qe3+ {[%clk 0:00:13]} 38...
Kd6 {[%clk 0:00:58.2]} 39. Qxa7 {[%clk 0:00:12.8]} 39... Bb5 {[%clk 0:00:58]}
40. Qd4+ {[%clk 0:00:11]} 40... Ke7 {[%clk 0:00:56.6]} 41. Qg7+ {[%clk
0:00:11.7]} 41... Kd6 {[%clk 0:00:58]} 42. Qxh7 {[%clk 0:00:12.8]} 42... c5
{[%clk 0:00:59.6]} 43. Qf5 {[%clk 0:00:10.5]} 43... Bxd7 {[%clk 0:01:00.2]} 44.
Qf6+ {[%clk 0:00:11.3]} 44... Bxf6 {[%clk 0:01:01]} 0-1

[Event "*** Titled Tuesday 3|2 Blitz"]
[Site "Chess.com"]
[Date "2016.05.03"]
[Round "5"]
[White "arna"]
[Black "Alexander_Donchenko"]
[Result "0-1"]
[WhiteElo "2146"]
[BlackElo "2645"]
[TimeControl "180+2"]
[EndTime "12:02:20 PDT"]
[Termination "Alexander_Donchenko won by resignation"]

1. e4 {[%clk 0:02:59]} 1... c6 {[%clk 0:03:00.4]} 2. c4 {[%clk 0:02:47.6]} 2...
d5 {[%clk 0:03:02.3]} 3. cxd5 {[%clk 0:02:48.5]} 3... cxd5 {[%clk 0:03:04.2]} 4.
exd5 {[%clk 0:02:49.9]} 4... Nf6 {[%clk 0:03:05.8]} 5. Qa4+ {[%clk 0:02:48.6]}
5... Nbd7 {[%clk 0:03:06.6]} 6. Nc3 {[%clk 0:02:48]} 6... g6 {[%clk 0:03:07.1]}
7. d6 {[%clk 0:02:35.8]} 7... exd6 {[%clk 0:03:03.9]} 8. d4 {[%clk 0:02:22.2]}
8... Bg7 {[%clk 0:03:04.5]} 9. Be2 {[%clk 0:02:23.4]} 9... O-O {[%clk
0:03:05.2]} 10. Nf3 {[%clk 0:02:24.6]} 10... Nb6 {[%clk 0:03:03.3]} 11. Qa3
{[%clk 0:02:21.3]} 11... Be6 {[%clk 0:02:55.7]} 12. b3 {[%clk 0:02:08.4]} 12...
Nbd5 {[%clk 0:02:45.9]} 13. Bd2 {[%clk 0:01:46]} 13... Rc8 {[%clk 0:02:28.1]}
14. Nxd5 {[%clk 0:01:34.8]} 14... Bxd5 {[%clk 0:02:30]} 15. O-O {[%clk
0:01:05.7]} 15... Re8 {[%clk 0:02:30.4]} 16. Bd1 {[%clk 0:01:06.7]} 16... a6
{[%clk 0:02:29.2]} 17. h3 {[%clk 0:01:06.6]} 17... Ne4 {[%clk 0:02:26.1]} 18.
Bf4 {[%clk 0:01:06.8]} 18... Rc6 {[%clk 0:02:15.6]} 19. Rc1 {[%clk 0:01:05.8]}
19... Nc3 {[%clk 0:02:04.8]} 20. Rxc3 {[%clk 0:00:57.4]} 20... Rxc3 {[%clk
0:02:05.1]} 21. Bxd6 {[%clk 0:00:59]} 21... Bf8 {[%clk 0:01:48.4]} 22. Bxf8
{[%clk 0:00:58.2]} 22... Rxf8 {[%clk 0:01:50.3]} 23. Qb4 {[%clk 0:00:57.3]}
23... Qc7 {[%clk 0:01:47.6]} 24. Ne5 {[%clk 0:00:52.7]} 24... Rc1 {[%clk
0:01:46.9]} 25. Qd2 {[%clk 0:00:49.3]} 25... Be6 {[%clk 0:01:29]} 26. Be2 {[%clk
0:00:39.9]} 26... Rxf1+ {[%clk 0:01:29.3]} 27. Bxf1 {[%clk 0:00:41.8]} 27... Rd8
{[%clk 0:01:29.7]} 28. Qe3 {[%clk 0:00:42.3]} 28... Qd6 {[%clk 0:01:19.5]} 29.
Nf3 {[%clk 0:00:24.5]} 29... Bd5 {[%clk 0:01:20.6]} 30. Ne5 {[%clk 0:00:23.5]}
30... Re8 {[%clk 0:01:12.8]} 31. Qf4 {[%clk 0:00:17.9]} 31... f6 {[%clk
0:01:07.3]} 32. Nxg6 {[%clk 0:00:17.4]} 32... Qxf4 {[%clk 0:01:04.6]} 33. Nxf4
{[%clk 0:00:19.3]} 33... Bf7 {[%clk 0:01:05.9]} 34. f3 {[%clk 0:00:11.3]} 34...
Re1 {[%clk 0:01:02]} 35. Kf2 {[%clk 0:00:04.9]} 35... Rd1 {[%clk 0:01:03.3]} 36.
d5 {[%clk 0:00:04.3]} 36... Rd2+ {[%clk 0:00:59.8]} 37. Ke3 {[%clk 0:00:05]}
37... Rxa2 {[%clk 0:01:01.6]} 38. d6 {[%clk 0:00:05.3]} 38... Kf8 {[%clk
0:01:02.3]} 39. Bd3 {[%clk 0:00:05.6]} 39... h6 {[%clk 0:01:00.8]} 40. b4 {[%clk
0:00:06.2]} 40... Rb2 {[%clk 0:01:00.1]} 41. Kd4 {[%clk 0:00:04.4]} 41... Rxb4+
{[%clk 0:01:01]} 42. Ke3 {[%clk 0:00:06.3]} 42... a5 {[%clk 0:01:00.7]} 43. Bg6
{[%clk 0:00:04]} 43... Bxg6 {[%clk 0:01:01]} 44. Nxg6+ {[%clk 0:00:05]} 44...
Ke8 {[%clk 0:01:02.3]} 45. Nf4 {[%clk 0:00:05.2]} 45... Rxf4 {[%clk 0:00:57.9]}
46. Kxf4 {[%clk 0:00:05.9]} 46... a4 {[%clk 0:00:59.8]} 0-1

[Event "*** Titled Tuesday 3|2 Blitz"]
[Site "Chess.com"]
[Date "2016.05.03"]
[Round "5"]
[White "Beca95"]
[Black "JusticeBot"]
[Result "1-0"]
[WhiteElo "2570"]
[BlackElo "2546"]
[TimeControl "180+2"]
[EndTime "12:02:36 PDT"]
[Termination "Beca95 won on time"]

1. d4 {[%clk 0:03:01.9]} 1... Nf6 {[%clk 0:03:01.1]} 2. c4 {[%clk 0:03:01.4]}
2... e6 {[%clk 0:03:02.2]} 3. Nf3 {[%clk 0:03:01.2]} 3... b6 {[%clk 0:03:02.5]}
4. g3 {[%clk 0:02:59.6]} 4... Ba6 {[%clk 0:03:03.9]} 5. Nbd2 {[%clk 0:02:59.7]}
5... Bb4 {[%clk 0:03:03.7]} 6. Qa4 {[%clk 0:02:59.5]} 6... c5 {[%clk 0:03:01.9]}
7. dxc5 {[%clk 0:03:00.6]} 7... Bxc5 {[%clk 0:02:25.6]} 8. Bg2 {[%clk
0:03:00.5]} 8... Bb7 {[%clk 0:02:19.7]} 9. O-O {[%clk 0:03:01]} 9... O-O {[%clk
0:02:20.7]} 10. b4 {[%clk 0:02:58.4]} 10... Be7 {[%clk 0:02:20.7]} 11. Bb2
{[%clk 0:02:59.6]} 11... Na6 {[%clk 0:02:20.6]} 12. a3 {[%clk 0:03:00]} 12...
Qc8 {[%clk 0:02:19]} 13. Rac1 {[%clk 0:02:59.9]} 13... Rd8 {[%clk 0:02:18.6]}
14. Rfd1 {[%clk 0:02:59.5]} 14... d6 {[%clk 0:02:02.5]} 15. Nd4 {[%clk
0:02:55.1]} 15... Bxg2 {[%clk 0:02:01.9]} 16. Kxg2 {[%clk 0:02:57]} 16... Qb7+
{[%clk 0:01:51.2]} 17. Qc6 {[%clk 0:02:57.8]} 17... Rd7 {[%clk 0:01:49.6]} 18.
N2b3 {[%clk 0:02:57.4]} 18... Rc8 {[%clk 0:01:48.7]} 19. Qxb7 {[%clk 0:02:58.1]}
19... Rxb7 {[%clk 0:01:50.5]} 20. Nb5 {[%clk 0:02:59.3]} 20... Ne8 {[%clk
0:01:47.6]} 21. e4 {[%clk 0:02:58.4]} 21... Nb8 {[%clk 0:01:36.5]} 22. e5 {[%clk
0:02:57.4]} 22... dxe5 {[%clk 0:01:28.8]} 23. Bxe5 {[%clk 0:02:57.8]} 23... a6
{[%clk 0:01:30.5]} 24. N5d4 {[%clk 0:02:57.6]} 24... Nd7 {[%clk 0:01:29.5]} 25.
Nf3 {[%clk 0:02:58.5]} 25... f6 {[%clk 0:01:17.4]} 26. Bf4 {[%clk 0:02:51.4]}
26... e5 {[%clk 0:01:16.4]} 27. Be3 {[%clk 0:02:52.1]} 27... Rbc7 {[%clk
0:01:15.7]} 28. Rd5 {[%clk 0:02:51.8]} 28... Kf7 {[%clk 0:01:07.9]} 29. Rcd1
{[%clk 0:01:16.5]} 29... Nf8 {[%clk 0:00:47.6]} 30. Bxb6 {[%clk 0:01:14.2]}
30... Rxc4 {[%clk 0:00:48.3]} 31. Bc5 {[%clk 0:01:15.4]} 31... Rc3 {[%clk
0:00:45.2]} 32. Bxe7 {[%clk 0:01:12.5]} 32... Kxe7 {[%clk 0:00:46.1]} 33. Nc5
{[%clk 0:01:10.2]} 33... Rxa3 {[%clk 0:00:46.2]} 34. Nh4 {[%clk 0:01:08.9]}
34... g6 {[%clk 0:00:45.2]} 35. f4 {[%clk 0:01:10.1]} 35... exf4 {[%clk
0:00:42.4]} 36. gxf4 {[%clk 0:01:11.4]} 36... Ra2+ {[%clk 0:00:41.4]} 37. Kh1
{[%clk 0:01:11.8]} 37... a5 {[%clk 0:00:39.5]} 38. b5 {[%clk 0:01:11.8]} 38...
Rb2 {[%clk 0:00:40.6]} 39. f5 {[%clk 0:01:02.6]} 39... Rxb5 {[%clk 0:00:30.8]}
40. fxg6 {[%clk 0:00:35.9]} 40... Rbxc5 {[%clk 0:00:09.8]} 41. Re1+ {[%clk
0:00:35.4]} 41... Ne6 {[%clk 0:00:10.5]} 42. gxh7 {[%clk 0:00:34.2]} 42... Rxd5
{[%clk 0:00:02.1]} 43. h8=Q {[%clk 0:00:34.1]} 43... Nc7 {[%clk 0:00:02.3]} 44.
Qg7+ {[%clk 0:00:33.5]} 44... Kd6 {[%clk 0:00:02.7]} 45. Qxf6 {[%clk 0:00:34.7]}
45... Kd7 {[%clk 0:00:02.2]} 46. Ng6 {[%clk 0:00:33.4]} 46... Rd6 {[%clk
0:00:02.5]} 47. Ne5+ {[%clk 0:00:34.2]} 47... Ke8 {[%clk 0:00:03.9]} 48. Rg1
{[%clk 0:00:32.7]} 1-0